fUSD/lending_fUSD_20250103
["ID","MTS","AMOUNT","RATE_DAILY","PERIOD"]
[347546611,1735912242536,-500.0,9.426e-05,2]
[347546613,1735912242545,-500.0,9.426e-05,2]
[347546616,1735912242554,-500.0,9.426e-05,2]
[347546618,1735912242562,-500.0,9.426e-05,2]
[347546620,1735912242572,-500.0,9.426e-05,2]
[347546622,1735912242581,-500.0,9.426e-05,2]
[347546623,1735912242590,-716.28,9.426e-05,2]
[347546624,1735912242599,-672.19,9.426e-05,2]
[347546626,1735912242608,-694.99,9.426e-05,2]
[347546627,1735912242617,-500.0,9.426e-05,2]
[347546629,1735912242626,-800.03,9.426e-05,2]
[347546631,1735912242635,-500.0,9.426e-05,2]
[347546633,1735912242644,-500.0,9.426e-05,2]
[347546635,1735912242653,-500.0,9.426e-05,2]
[347546637,1735912242662,-500.0,9.426e-05,2]
[347546639,1735912242677,-1178.6,9.426e-05,2]
[347546641,1735912242688,-500.0,9.426e-05,2]
[347546643,1735912242698,-500.0,9.426e-05,2]
[347546645,1735912242707,-500.0,9.426e-05,2]
[347546647,1735912242717,-500.0,9.426e-05,2]
[347546649,1735912242726,-755.17,9.426e-05,2]
[347546651,1735912242736,-806.04,9.426e-05,2]
[347546653,1735912242745,-500.0,9.426e-05,2]
[347546655,1735912242754,-976.9,9.426e-05,2]
[347546657,1735912242764,-500.0,9.426e-05,2]
[347546659,1735912242774,-500.0,9.426e-05,2]
[347546661,1735912242783,-500.0,9.426e-05,2]
[347546663,1735912242792,-555.56,9.426e-05,2]
[347546664,1735912242802,-500.0,9.426e-05,2]
[347546666,1735912242811,-946.42,9.426e-05,2]
[347546669,1735912242820,-500.0,9.426e-05,2]
[347546670,1735912242830,-500.0,9.426e-05,2]
[347546672,1735912242839,-616.25,9.426e-05,2]
[347546674,1735912242849,-222.48869971,9.426e-05,2]
[347546676,1735912242858,-500.0,9.426e-05,2]
[347546678,1735912242870,-500.0,9.426e-05,2]
[347546680,1735912242879,-878.37,9.426e-05,2]
[347546681,1735912242887,-500.0,9.426e-05,2]
[347546682,1735912242897,-500.0,9.426e-05,2]
[347546683,1735912242906,-268.52,9.426e-05,2]
[347546684,1735912242917,-500.0,9.426e-05,2]
[347546685,1735912242926,-607.88,9.426e-05,2]
[347546686,1735912242936,-475.05364622,9.426e-05,2]
[347546688,1735912242945,-666.84,9.426e-05,2]
[347546690,1735912242955,-500.0,9.426e-05,2]
[347546691,1735912242965,-1403.45,9.426e-05,2]
[347546692,1735912242974,-500.0,9.426e-05,2]
[347546693,1735912242983,-500.0,9.426e-05,2]
[347546694,1735912242992,-500.0,9.426e-05,2]
[347546695,1735912243002,-500.0,9.426e-05,2]
[347546696,1735912243011,-500.0,9.426e-05,2]
[347546697,1735912243021,-500.0,9.426e-05,2]
[347546698,1735912243030,-500.0,9.426e-05,2]
[347546699,1735912243039,-500.0,9.426e-05,2]
[347546701,1735912243051,-367.57,9.426e-05,2]
[347546703,1735912243060,-500.0,9.426e-05,2]
[347546705,1735912243069,-500.0,9.426e-05,2]
[347546707,1735912243078,-729.62,9.426e-05,2]
[347546709,1735912243088,-3455.26,9.426e-05,2]
[347546711,1735912243097,-1087.4,9.426e-05,2]
[347546713,1735912243106,-301.89223643,9.426e-05,2]
[347546714,1735912243115,-583.89,9.426e-05,2]
[347546716,1735912243124,-500.0,9.426e-05,2]
[347546718,1735912243133,-500.0,9.426e-05,2]
[347546720,1735912243143,-500.0,9.426e-05,2]
[347546722,1735912243152,-1614.53,9.426e-05,2]
[347546723,1735912243161,-2498.82,9.426e-05,2]
[347546724,1735912243170,-1437.32,9.426e-05,2]
[347546725,1735912243179,-500.0,9.426e-05,2]
[347546726,1735912243187,-536.66,9.426e-05,2]
[347546727,1735912243196,-7462.38,9.426e-05,2]
[347546728,1735912243205,-500.0,9.426e-05,2]
[347546729,1735912243214,-500.0,9.426e-05,2]
[347546730,1735912243222,-528.95,9.426e-05,2]
[347546731,1735912243232,-784.67,9.426e-05,2]
[347546732,1735912243241,-1175.39,9.426e-05,2]
[347546733,1735912243249,-6631.57,9.426e-05,2]
[347546734,1735912243258,-584.39,9.426e-05,2]
[347546735,1735912243267,-1141.96,9.426e-05,2]
[347546737,1735912243275,-500.0,9.426e-05,7]
[347546739,1735912243284,-500.0,9.426e-05,2]
[347546741,1735912243294,-500.0,9.426e-05,2]
[347546743,1735912243303,-656.37,9.426e-05,2]
[347546745,1735912243311,-500.0,9.426e-05,2]
[347546746,1735912243320,-734.35,9.426e-05,2]
[347546748,1735912243330,-500.0,9.426e-05,2]
[347546751,1735912243339,-613.4,9.426e-05,2]
[347546752,1735912243348,-567.22,9.426e-05,2]
[347546754,1735912243357,-622.23,9.426e-05,2]
[347546756,1735912243366,-500.0,9.426e-05,2]
[347546758,1735912243375,-551.7,9.426e-05,2]
[347546760,1735912243384,-500.0,9.426e-05,2]
[347546763,1735912243393,-500.0,9.426e-05,2]
[347546766,1735912243403,-500.0,9.426e-05,2]
[347546768,1735912243413,-2258.87,9.426e-05,2]
[347546770,1735912243423,-500.0,9.426e-05,2]
[347546772,1735912243433,-500.0,9.426e-05,2]
[347546774,1735912243443,-500.0,9.426e-05,2]
[347546775,1735912243453,-500.0,9.426e-05,2]
[347546776,1735912243462,-534.65,9.426e-05,2]
[347546777,1735912243472,-500.0,9.426e-05,2]
[347546778,1735912243481,-594.07,9.426e-05,2]
[347546779,1735912243491,-500.0,9.426e-05,2]
[347546780,1735912243500,-500.0,9.426e-05,2]
[347546781,1735912243509,-684.52,9.426e-05,2]
[347546782,1735912243518,-500.0,9.426e-05,2]
[347546783,1735912243528,-6062.35,9.426e-05,2]
[347546784,1735912243537,-500.0,9.426e-05,2]
[347546785,1735912243546,-500.0,9.426e-05,2]
[347546786,1735912243556,-712.61,9.426e-05,2]
[347546787,1735912243565,-685.6,9.426e-05,2]
[347546788,1735912243575,-1192.1,9.426e-05,2]
[347546789,1735912243585,-484.77998925,9.426e-05,2]
[347546790,1735912243594,-801.81,9.426e-05,2]
[347546791,1735912243603,-1232.65,9.426e-05,2]
[347546792,1735912243613,-500.0,9.426e-05,2]
[347546793,1735912243622,-500.0,9.426e-05,2]
[347546794,1735912243632,-500.0,9.426e-05,2]
[347546795,1735912243641,-188.76742151,9.426e-05,2]
[347546796,1735912243651,-833.44,9.426e-05,2]
[347546797,1735912243660,-500.0,9.426e-05,2]
[347546798,1735912243671,-500.0,9.426e-05,2]
[347546799,1735912243680,-266.15,9.426e-05,2]
[347546800,1735912243689,-500.0,9.426e-05,2]
[347546801,1735912243699,-603.22,9.426e-05,2]
[347546802,1735912243708,-457.1999401,9.426e-05,2]
[347546803,1735912243718,-500.0,9.426e-05,2]
[347546804,1735912243727,-500.0,9.426e-05,2]
[347546805,1735912243736,-670.59,9.426e-05,2]
[347546806,1735912243745,-587.46,9.426e-05,2]
[347546807,1735912243754,-500.0,9.426e-05,2]
[347546808,1735912243764,-662.36,9.426e-05,2]
[347546809,1735912243773,-608.94,9.426e-05,2]
[347546810,1735912243783,-553.5,9.426e-05,2]
[347546811,1735912243792,-500.0,9.426e-05,2]
[347546812,1735912243801,-933.17,9.426e-05,2]
[347546813,1735912243810,-366.30226183,9.426e-05,2]
[347546814,1735912243819,-500.0,9.426e-05,2]
[347546815,1735912243828,-500.0,9.426e-05,2]
[347546816,1735912243838,-1024.63,9.426e-05,2]
[347546817,1735912243847,-500.0,9.426e-05,2]
[347546818,1735912243856,-500.0,9.426e-05,2]
[347546819,1735912243867,-1008.89,9.426e-05,2]
[347546820,1735912243878,-500.0,9.426e-05,2]
[347546821,1735912243888,-500.0,9.426e-05,2]
[347546822,1735912243897,-500.0,9.426e-05,2]
[347546823,1735912243907,-520.24,9.426e-05,2]
[347546824,1735912243918,-1639.21,9.426e-05,2]
[347546825,1735912243927,-677.87,9.426e-05,2]
[347546826,1735912243936,-500.0,9.426e-05,2]
[347546827,1735912243947,-500.0,9.426e-05,2]
[347546828,1735912243956,-500.0,9.426e-05,2]
[347546829,1735912243966,-500.0,9.426e-05,2]
[347546830,1735912243975,-805.16,9.426e-05,2]
[347546831,1735912243984,-539.19,9.426e-05,2]
[347546832,1735912243993,-613.75,9.426e-05,2]
[347546833,1735912244002,-720.17,9.426e-05,2]
[347546834,1735912244011,-500.0,9.426e-05,2]
[347546835,1735912244021,-901.15,9.426e-05,2]
[347546836,1735912244031,-966.44,9.426e-05,2]
[347546837,1735912244041,-5403.63,9.427e-05,2]
[347546838,1735912244050,-741.7,9.427e-05,2]
[347546839,1735912244060,-5187.71,9.427e-05,2]
[347546840,1735912244071,-765.62,9.427e-05,2]
[347546841,1735912244081,-500.0,9.427e-05,2]
[347546842,1735912244091,-1080.01,9.427e-05,2]
[347546843,1735912244221,-1676.9,9.427e-05,2]
[347546844,1735912244232,-1892.81,9.427e-05,2]
[347546845,1735912244241,-150.0,9.433e-05,2]
[347546846,1735912244250,-150.0,9.449e-05,2]
[347546847,1735912244259,-150.0,9.451e-05,2]
[347546848,1735912244268,-150.0,9.47e-05,2]
[347546849,1735912244278,-150.0,9.488e-05,2]
[347546850,1735912244287,-150.0,9.493e-05,2]
[347546851,1735912244296,-2200.0,9.5e-05,3]
[347546852,1735912244306,-150.0,9.505e-05,2]
[347546853,1735912244315,-1859.08,9.506e-05,2]
[347546854,1735912244325,-1713.39,9.506e-05,2]
[347546855,1735912244334,-598.44,9.506e-05,2]
[347546856,1735912244344,-150.0,9.506e-05,2]
[347546857,1735912244353,-150.0,9.525e-05,2]
[347546858,1735912244362,-500.0,9.525e-05,2]
[347546859,1735912244372,-894.1,9.525e-05,2]
[347546860,1735912244381,-569.62,9.525e-05,2]
[347546861,1735912244391,-754.68,9.525e-05,2]
[347546862,1735912244399,-820.45,9.526e-05,2]
[347546863,1735912244408,-1988.74,9.526e-05,2]
[347546864,1735912244419,-701.0,9.526e-05,2]
[347546865,1735912244428,-1200.61,9.526e-05,2]
[347546866,1735912244437,-927.31,9.526e-05,2]
[347546867,1735912244447,-500.0,9.526e-05,2]
[347546868,1735912244456,-2408.54,9.526e-05,2]
[347546869,1735912244465,-2549.64,9.526e-05,2]
[347546870,1735912244474,-939.89,9.526e-05,2]
[347546871,1735912244484,-279.05658229,9.526e-05,2]
[347546872,1735912244493,-648.07,9.526e-05,2]
[347546873,1735912244502,-632.36,9.526e-05,2]
[347546874,1735912244512,-500.0,9.526e-05,2]
[347546875,1735912244521,-6547.07,9.526e-05,2]
[347546876,1735912244530,-875.0,9.526e-05,2]
[347546877,1735912244540,-2770.95,9.526e-05,2]
[347546878,1735912244549,-845.43,9.526e-05,2]
[347546879,1735912244559,-500.0,9.526e-05,2]
[347546880,1735912244568,-858.41,9.526e-05,2]
[347546881,1735912244577,-500.0,9.526e-05,2]
[347546882,1735912244588,-758.13,9.526e-05,2]
[347546883,1735912244597,-830.7,9.526e-05,2]
[347546884,1735912244606,-800.82,9.526e-05,2]
[347546885,1735912244616,-500.0,9.526e-05,2]
[347546886,1735912244625,-2970.35,9.526e-05,2]
[347546887,1735912244636,-589.95,9.526e-05,2]
[347546888,1735912244646,-500.0,9.526e-05,2]
[347546889,1735912244656,-1859.05,9.526e-05,2]
[347546890,1735912244665,-697.89,9.526e-05,2]
[347546891,1735912244675,-1660.2,9.526e-05,2]
[347546892,1735912244685,-3287.97,9.526e-05,2]
[347546893,1735912244694,-1276.04,9.526e-05,2]
[347546894,1735912244704,-865.49,9.526e-05,2]
[347546895,1735912244715,-1346.77,9.526e-05,2]
[347546896,1735912244724,-2248.16,9.526e-05,2]
[347546897,1735912244735,-508.58,9.526e-05,2]
[347546898,1735912244744,-4486.17,9.526e-05,2]
[347546899,1735912244754,-1014.68,9.526e-05,2]
[347546900,1735912244764,-3331.95,9.526e-05,2]
[347546901,1735912244774,-764.5,9.526e-05,2]
[347546902,1735912244784,-500.0,9.526e-05,2]
[347546903,1735912244794,-2208.72,9.526e-05,2]
[347546904,1735912244804,-500.0,9.527e-05,2]
[347546905,1735912244813,-621.63,9.527e-05,2]
[347546906,1735912244823,-500.0,9.527e-05,2]
[347546907,1735912244832,-735.85,9.527e-05,2]
[347546908,1735912244841,-579.99,9.527e-05,2]
[347546909,1735912244852,-500.0,9.527e-05,2]
[347546910,1735912244862,-934.26,9.527e-05,2]
[347546911,1735912244874,-500.0,9.527e-05,2]
[347546912,1735912244883,-500.0,9.527e-05,2]
[347546913,1735912244893,-500.0,9.527e-05,2]
[347546914,1735912244904,-500.0,9.527e-05,2]
[347546915,1735912244914,-500.0,9.527e-05,2]
[347546916,1735912244926,-500.0,9.527e-05,2]
[347546917,1735912244935,-500.0,9.527e-05,2]
[347546918,1735912244944,-500.0,9.527e-05,2]
[347546919,1735912244953,-500.0,9.527e-05,2]
[347546920,1735912244963,-2891.43,9.527e-05,2]
[347546921,1735912244972,-500.0,9.527e-05,2]
[347546922,1735912244981,-500.0,9.527e-05,2]
[347546923,1735912244990,-500.0,9.527e-05,2]
[347546924,1735912245000,-4080.2,9.527e-05,2]
[347546925,1735912245009,-500.0,9.527e-05,2]
[347546926,1735912245019,-500.0,9.527e-05,2]
[347546927,1735912245028,-500.0,9.527e-05,2]
[347546928,1735912245038,-500.0,9.527e-05,2]
[347546929,1735912245047,-479.19499534,9.527e-05,2]
[347546930,1735912245057,-500.0,9.527e-05,2]
[347546931,1735912245066,-500.0,9.527e-05,2]
[347546932,1735912245076,-2364.83,9.527e-05,2]
[347546933,1735912245085,-291.03350364,9.527e-05,2]
[347546934,1735912245094,-500.0,9.527e-05,2]
[347546935,1735912245104,-500.0,9.527e-05,2]
[347546936,1735912245113,-500.0,9.527e-05,2]
[347546937,1735912245123,-500.0,9.527e-05,2]
[347546938,1735912245132,-500.0,9.527e-05,2]
[347546939,1735912245142,-500.0,9.527e-05,2]
[347546940,1735912245151,-639.13875636,9.527e-05,2]
[347546941,1735912245160,-500.0,9.527e-05,2]
[347546942,1735912245171,-500.0,9.527e-05,2]
[347546943,1735912245181,-500.0,9.527e-05,2]
[347546944,1735912245190,-500.0,9.527e-05,2]
[347546945,1735912245200,-500.0,9.527e-05,2]
[347546946,1735912245209,-500.0,9.527e-05,2]
[347546947,1735912245219,-779.4,9.527e-05,2]
[347546948,1735912245228,-624.43,9.527e-05,2]
[347546949,1735912245237,-500.0,9.527e-05,2]
[347546950,1735912245249,-500.0,9.527e-05,2]
[347546951,1735912245259,-262.59056258,9.527e-05,2]
[347546952,1735912245268,-500.0,9.527e-05,2]
[347546953,1735912245277,-500.0,9.527e-05,2]
[347546954,1735912245287,-500.0,9.527e-05,2]
[347546955,1735912245296,-500.0,9.527e-05,2]
[347546956,1735912245305,-500.0,9.527e-05,2]
[347546957,1735912245314,-629.17,9.527e-05,2]
[347546958,1735912245324,-500.0,9.527e-05,2]
[347546959,1735912245333,-500.0,9.527e-05,2]
[347546960,1735912245342,-500.0,9.527e-05,2]
[347546961,1735912245352,-500.0,9.527e-05,2]
[347546962,1735912245361,-228.0294457,9.527e-05,2]
[347546963,1735912245371,-1292.71,9.527e-05,2]
[347546964,1735912245380,-500.0,9.527e-05,2]
[347546965,1735912245391,-2635.2,9.528e-05,2]
[347546966,1735912245401,-1467.65,9.528e-05,2]
[347546967,1735912245410,-1103.96,9.528e-05,2]
[347546968,1735912245421,-500.0,9.528e-05,2]
[347546969,1735912245432,-767.48,9.528e-05,2]
[347546970,1735912245442,-1459.38,9.528e-05,2]
[347546971,1735912245451,-715.98,9.528e-05,2]
[347546972,1735912245461,-999.15,9.528e-05,2]
[347546973,1735912245471,-2959.48,9.528e-05,2]
[347546975,1735912245481,-712.86,9.528e-05,2]
[347546978,1735912245490,-561.87,9.528e-05,2]
[347546980,1735912245500,-4822.08,9.528e-05,2]
[347546981,1735912245510,-611.26,9.528e-05,2]
[347546982,1735912245519,-500.0,9.528e-05,2]
[347546983,1735912245529,-1352.5,9.528e-05,2]
[347546984,1735912245538,-4791.27,9.528e-05,2]
[347546985,1735912245548,-500.0,9.528e-05,2]
[347546986,1735912245557,-5794.62,9.528e-05,2]
[347546987,1735912245567,-753.67,9.528e-05,2]
[347546988,1735912245576,-354.24765155,9.528e-05,2]
[347546989,1735912245585,-1502.57,9.528e-05,2]
[347546990,1735912245595,-500.0,9.528e-05,2]
[347546991,1735912245604,-1183.64,9.528e-05,2]
[347546992,1735912245614,-648.77,9.528e-05,2]
[347546993,1735912245623,-500.0,9.528e-05,2]
[347546994,1735912245634,-787.93,9.528e-05,2]
[347546995,1735912245643,-1431.07,9.528e-05,2]
[347546996,1735912245653,-1103.51,9.528e-05,2]
[347546997,1735912245662,-751.24,9.528e-05,2]
[347546998,1735912245673,-500.0,9.528e-05,2]
[347546999,1735912245682,-621.47,9.528e-05,2]
[347547000,1735912245692,-1622.39,9.528e-05,2]
[347547001,1735912245702,-500.0,9.528e-05,2]
[347547002,1735912245712,-2079.62,9.528e-05,2]
[347547003,1735912245721,-754.71,9.528e-05,2]
[347547004,1735912245731,-1493.54,9.528e-05,2]
[347547005,1735912245741,-500.0,9.528e-05,2]
[347547006,1735912245750,-2068.41,9.528e-05,2]
[347547007,1735912245759,-1636.0,9.528e-05,2]
[347547008,1735912245768,-634.28,9.528e-05,2]
[347547009,1735912245777,-4492.12,9.528e-05,2]
[347547010,1735912245787,-500.0,9.528e-05,2]
[347547011,1735912245796,-921.35,9.528e-05,2]
[347547012,1735912245806,-500.0,9.528e-05,2]
[347547013,1735912245816,-675.04,9.528e-05,2]
[347547014,1735912245825,-551.26,9.528e-05,2]
[347547015,1735912245834,-1129.96,9.528e-05,2]
[347547016,1735912245844,-1721.8,9.528e-05,2]
[347547017,1735912245853,-713.23,9.528e-05,2]
[347547018,1735912245864,-2569.41,9.528e-05,2]
[347547019,1735912245874,-1586.65,9.528e-05,2]
[347547020,1735912245884,-3151.8,9.528e-05,2]
[347547021,1735912245893,-1623.0,9.528e-05,2]
[347547022,1735912245902,-1588.98,9.529e-05,2]
[347547023,1735912245914,-1142.4,9.529e-05,2]
[347547024,1735912245925,-4382.29,9.529e-05,2]
[347547025,1735912245934,-3451.65,9.529e-05,2]
[347547026,1735912245946,-150.0,9.543e-05,2]
[347547027,1735912245955,-500.76720486,9.553e-05,2]
[347547028,1735912245965,-500.0,9.553e-05,2]
[347547029,1735912245974,-151.99669796,9.553e-05,2]
[347547030,1735912245983,-151.99670124,9.553e-05,2]
[347547031,1735912245992,-151.9966997,9.553e-05,2]
[347547032,1735912246001,-151.99670108,9.553e-05,2]
[347547033,1735912246011,-160.25009431,9.553e-05,2]
[347547034,1735912246020,-151.99614238,9.553e-05,2]
[347547035,1735912246029,-151.99669775,9.553e-05,2]
[347547036,1735912246038,-151.99614493,9.553e-05,2]
[347547037,1735912246047,-500.0,9.553e-05,2]
[347547038,1735912246060,-261.76650416,9.553e-05,2]
[347547039,1735912246072,-150.99672129,9.553e-05,2]
[347547040,1735912246081,-151.9967006,9.553e-05,2]
[347547041,1735912246091,-151.99669901,9.553e-05,2]
[347547043,1735912246100,-151.99614114,9.553e-05,2]
[347547045,1735912246109,-151.99669949,9.553e-05,2]
[347547047,1735912246119,-297.71665273,9.562e-05,2]
[347547049,1735912246128,-226.00763541,9.562e-05,2]
[347547051,1735912246137,-220.24651934,9.562e-05,2]
[347547052,1735912246146,-150.0,9.562e-05,2]
[347547053,1735912246155,-500.0,9.579e-05,2]
[347547054,1735912246164,-500.0,9.579e-05,2]
[347547055,1735912246175,-500.0,9.579e-05,2]
[347547056,1735912246184,-500.0,9.579e-05,2]
[347547057,1735912246193,-500.0,9.579e-05,2]
[347547058,1735912246202,-500.0,9.579e-05,2]
[347547059,1735912246211,-500.46465182,9.579e-05,2]
[347547060,1735912246220,-500.0,9.579e-05,2]
[347547061,1735912246229,-500.0,9.579e-05,2]
[347547062,1735912246238,-500.0,9.579e-05,2]
[347547063,1735912246248,-582.6,9.579e-05,2]
[347547064,1735912246257,-500.0,9.579e-05,2]
[347547065,1735912246266,-500.0,9.579e-05,2]
[347547066,1735912246275,-500.0,9.579e-05,2]
[347547067,1735912246284,-500.0,9.579e-05,2]
[347547068,1735912246584,-500.0,9.579e-05,2]
[347547069,1735912246599,-500.0,9.579e-05,2]
[347547070,1735912246609,-500.0,9.579e-05,2]
[347547071,1735912246618,-500.0,9.579e-05,2]
[347547072,1735912246629,-500.0,9.579e-05,2]
[347547073,1735912246638,-500.0,9.579e-05,2]
[347547074,1735912246647,-844.01,9.579e-05,2]
[347547075,1735912246657,-500.0,9.579e-05,2]
[347547076,1735912246668,-500.0,9.579e-05,2]
[347547077,1735912246677,-709.47,9.579e-05,2]
[347547078,1735912246688,-500.50137231,9.579e-05,2]
[347547079,1735912246697,-500.20421125,9.579e-05,2]
[347547080,1735912246707,-633.47,9.579e-05,2]
[347547081,1735912246718,-500.0,9.579e-05,2]
[347547082,1735912246727,-541.65,9.579e-05,2]
[347547083,1735912246736,-500.0,9.579e-05,2]
[347547084,1735912246746,-500.0,9.579e-05,2]
[347547085,1735912246756,-500.45603127,9.579e-05,2]
[347547086,1735912246765,-500.0,9.579e-05,2]
[347547087,1735912246775,-500.0,9.579e-05,2]
[347547088,1735912246785,-500.0,9.579e-05,2]
[347547089,1735912246795,-356.6545869,9.579e-05,2]
[347547090,1735912246804,-500.0,9.579e-05,2]
[347547091,1735912246816,-500.0,9.579e-05,2]
[347547092,1735912246826,-500.0,9.579e-05,2]
[347547093,1735912246835,-500.0,9.579e-05,2]
[347547094,1735912246844,-500.0,9.579e-05,2]
[347547095,1735912246854,-500.40833853,9.579e-05,2]
[347547096,1735912246865,-500.0,9.579e-05,2]
[347547097,1735912246875,-500.0,9.579e-05,2]
[347547098,1735912246885,-500.0,9.579e-05,2]
[347547099,1735912246895,-500.0,9.579e-05,2]
[347547100,1735912246906,-500.0,9.579e-05,2]
[347547101,1735912246916,-500.0,9.579e-05,2]
[347547102,1735912246927,-500.0,9.579e-05,2]
[347547103,1735912246937,-500.0,9.579e-05,2]
[347547104,1735912246946,-577.72,9.579e-05,2]
[347547105,1735912246956,-500.0,9.579e-05,2]
[347547106,1735912246966,-500.0,9.579e-05,2]
[347547107,1735912246975,-500.0,9.579e-05,2]
[347547108,1735912246984,-500.0,9.579e-05,2]
[347547109,1735912246994,-309.59936592,9.579e-05,2]
[347547110,1735912247003,-500.0,9.579e-05,2]
[347547111,1735912247013,-500.0,9.579e-05,2]
[347547112,1735912247023,-500.0,9.579e-05,2]
[347547113,1735912247033,-512.13179683,9.579e-05,2]
[347547114,1735912247042,-835.2,9.579e-05,2]
[347547115,1735912247051,-500.0,9.579e-05,2]
[347547116,1735912247061,-500.0,9.579e-05,2]
[347547117,1735912247071,-500.0,9.579e-05,2]
[347547118,1735912247080,-500.0,9.579e-05,2]
[347547119,1735912247090,-769.04,9.579e-05,2]
[347547120,1735912247099,-518.85,9.579e-05,2]
[347547121,1735912247109,-500.0,9.579e-05,2]
[347547122,1735912247118,-500.0,9.579e-05,2]
[347547123,1735912247127,-500.0,9.579e-05,2]
[347547124,1735912247137,-500.0,9.579e-05,2]
[347547125,1735912247147,-693.68,9.579e-05,2]
[347547126,1735912247157,-500.0,9.579e-05,2]
[347547127,1735912247168,-500.0,9.579e-05,2]
[347547128,1735912247177,-500.0,9.579e-05,2]
[347547129,1735912247186,-500.0,9.579e-05,2]
[347547130,1735912247196,-500.0,9.579e-05,2]
[347547131,1735912247205,-500.65041928,9.579e-05,2]
[347547132,1735912247215,-500.0,9.579e-05,2]
[347547133,1735912247224,-500.0,9.579e-05,2]
[347547134,1735912247233,-500.0,9.579e-05,2]
[347547135,1735912247242,-500.0,9.579e-05,2]
[347547136,1735912247252,-500.0,9.579e-05,2]
[347547137,1735912247262,-296.28001704,9.579e-05,2]
[347547138,1735912247271,-500.0,9.579e-05,2]
[347547139,1735912247282,-500.0,9.579e-05,2]
[347547140,1735912247292,-500.0,9.579e-05,2]
[347547141,1735912247302,-500.0,9.579e-05,2]
[347547142,1735912247312,-549.26,9.579e-05,2]
[347547143,1735912247322,-500.26568098,9.579e-05,2]
[347547144,1735912247333,-500.0,9.579e-05,2]
[347547145,1735912247343,-500.0,9.579e-05,2]
[347547146,1735912247352,-782.1,9.579e-05,2]
[347547147,1735912247362,-500.0,9.579e-05,2]
[347547148,1735912247371,-500.0,9.579e-05,2]
[347547149,1735912247380,-500.0,9.579e-05,2]
[347547150,1735912247389,-563.86,9.579e-05,2]
[347547151,1735912247399,-500.0,9.579e-05,2]
[347547152,1735912247408,-526.38,9.579e-05,2]
[347547153,1735912247418,-500.0,9.579e-05,2]
[347547154,1735912247427,-804.33,9.579e-05,2]
[347547155,1735912247437,-500.0,9.579e-05,2]
[347547156,1735912247446,-500.0,9.579e-05,2]
[347547157,1735912247456,-500.0,9.579e-05,2]
[347547158,1735912247466,-500.0,9.579e-05,2]
[347547159,1735912247475,-500.0,9.579e-05,2]
[347547160,1735912247486,-500.0,9.579e-05,2]
[347547161,1735912247495,-571.06849702,9.579e-05,2]
[347547162,1735912247505,-854.32,9.579e-05,2]
[347547163,1735912247514,-1540.31,9.579e-05,2]
[347547164,1735912247524,-500.0,9.579e-05,2]
[347547165,1735912247533,-500.0,9.579e-05,2]
[347547166,1735912247544,-500.0,9.579e-05,2]
[347547167,1735912247553,-500.0,9.579e-05,2]
[347547168,1735912247563,-500.0,9.579e-05,2]
[347547169,1735912247572,-526.68138423,9.579e-05,2]
[347547170,1735912247581,-1412.48,9.579e-05,2]
[347547171,1735912247591,-590.76,9.579e-05,2]
[347547172,1735912247601,-500.0,9.579e-05,2]
[347547173,1735912247610,-500.0,9.579e-05,2]
[347547174,1735912247619,-500.0,9.579e-05,2]
[347547175,1735912247628,-500.0,9.579e-05,2]
[347547176,1735912247639,-500.0,9.579e-05,2]
[347547177,1735912247652,-500.0,9.579e-05,2]
[347547178,1735912247661,-500.0,9.579e-05,2]
[347547179,1735912247671,-500.0,9.579e-05,2]
[347547180,1735912247681,-500.0,9.579e-05,2]
[347547181,1735912247690,-500.0,9.579e-05,2]
[347547182,1735912247700,-886.61,9.579e-05,2]
[347547183,1735912247709,-500.0,9.579e-05,2]
[347547184,1735912247719,-500.0,9.579e-05,2]
[347547185,1735912247729,-605.52,9.579e-05,2]